bitfinex/quotes_ETHUSD_20240824
["timestamp","ask_amount","ask_price","bid_price","bid_amount"]
[1724526845646,5.90511,2794.4,2793.8,5.13490971]
[1724526845813,5.90511,2794.4,2793.8,6.96001768]
[1724526846816,5.90511,2794.4,2794.0,1.55564971]
[1724526847217,3.57861,2794.4,2794.0,1.55564971]
[1724526850468,3.57849,2794.5,2794.1,2.2522]
[1724526851158,7.15704,2794.5,2794.1,2.2522]
[1724526851380,3.57799,2794.9,2794.4,1.55564971]
[1724526851529,3.57799,2794.9,2794.5,2.2522]
[1724526852662,3.57774,2795.1,2794.5,2.2522]
[1724526852968,3.57782,2795.0,2794.6,1.55564971]
[1724526853334,3.57782,2795.0,2794.5,2.2522]
[1724526854444,7.15573,2795.0,2794.5,2.2522]
[1724526854646,7.15576,2795.0,2794.5,2.2522]
[1724526854878,3.57782,2795.0,2794.5,2.2522]
[1724526855550,7.15574,2795.0,2794.5,2.2522]
[1724526855759,3.57782,2795.0,2794.5,2.2522]
[1724526856285,7.15573,2795.0,2794.5,2.2522]
[1724526856966,7.15573,2795.0,2794.3,7.26]
[1724526856967,3.57794,2794.9,2794.3,7.26]
[1724526857150,3.57827,2794.7,2794.3,9.5122]
[1724526858166,3.5781,2794.8,2794.3,9.5122]
[1724526858492,3.5781,2794.8,2794.4,3.02031068]
[1724526860494,3.57783,2795.0,2794.4,3.02031068]
[1724526861133,3.57801,2794.9,2794.4,3.02031068]
[1724526864369,3.57801,2794.9,2794.4,6.59889068]
[1724526866616,3.57763,2795.2,2794.6,3.57824]
[1724526866903,0.1336472,2795.4,2794.9,5.83065]
[1724526867202,0.1336472,2795.4,2795.0,3.5778]
[1724526876587,0.1336472,2795.4,2795.1,3.5776]
[1724526876787,0.1336472,2795.4,2795.2,6.00420468]
[1724526877050,0.1336472,2795.4,2795.3,5.99143]
[1724526879487,0.1336472,2795.4,2795.3,2.414]
[1724526880199,0.1336472,2795.4,2795.2,4.44855497]
[1724526881234,0.1336472,2795.4,2795.2,0.87110497]
[1724526881608,0.1336472,2795.4,2795.3,3.1859655]
[1724526881811,0.1336472,2795.4,2795.3,0.6940655]
[1724526887355,0.1336472,2795.4,2795.3,4.2714955]
[1724526890838,0.1336472,2795.4,2795.3,0.6940655]
[1724526891047,0.1336472,2795.4,2795.3,4.2714955]
[1724526893147,0.1336472,2795.4,2795.3,13.1272255]
[1724526896759,0.1336472,2795.4,2795.3,7.2714955]
[1724526897051,0.1336472,2795.4,2795.3,6.57743]
[1724526897756,0.1336472,2795.4,2795.3,3.0]
[1724526898252,0.1336472,2795.4,2795.3,8.85573]
[1724526899268,0.1336472,2795.4,2795.3,12.43316]
[1724526903006,0.1336472,2795.4,2795.3,6.57743]
[1724526903221,0.1336472,2795.4,2795.3,8.13307971]
[1724526903455,0.1336472,2795.4,2795.3,9.30414068]
[1724526904010,0.1336472,2795.4,2795.3,12.88157068]
[1724526904925,0.1336472,2795.4,2795.3,15.15987068]
[1724526907010,0.1336472,2795.4,2795.3,12.88157068]
[1724526907306,0.1336472,2795.4,2795.3,6.57743]
[1724526907756,0.1336472,2795.4,2795.2,3.57756]
[1724526908450,0.1336472,2795.4,2795.1,5.13327971]
[1724526908655,0.1336472,2795.4,2795.1,5.13325971]
[1724526909212,0.1336472,2795.4,2795.2,3.57755]
[1724526913961,2.4454,2795.3,2795.2,3.57755]
[1724526914469,0.1336472,2795.4,2795.2,3.57755]
[1724526915522,0.1336472,2795.4,2795.2,7.15503]
[1724526915853,0.1336472,2795.4,2795.3,1.55564971]
[1724526916819,0.1336472,2795.4,2795.3,5.13307971]
[1724526917454,0.1336472,2795.4,2795.3,1.55564971]
[1724526917766,0.1336472,2795.4,2795.3,5.13307971]
[1724526920675,0.1336472,2795.4,2795.3,1.55564971]
[1724526920877,0.1336472,2795.4,2795.3,5.13307971]
[1724526921177,0.1336472,2795.4,2795.3,6.09124148]
[1724526921967,0.1336472,2795.4,2795.3,8.36044148]
[1724526923333,0.1336472,2795.4,2795.3,15.51530148]
[1724526923539,0.1336472,2795.4,2795.3,22.92060981]
[1724526923871,0.1336472,2795.4,2795.3,25.78086286]
[1724526924233,0.01304356,2795.4,2795.3,24.66171688]
[1724526924428,0.01304356,2795.4,2795.3,26.15391152]
[1724526925378,2.4454,2796.7,2795.3,26.15391152]
[1724526925379,2.4454,2796.7,2796.3,3.57609]
[1724526925552,2.4454,2796.7,2796.3,5.13173971]
[1724526925752,2.4454,2796.7,2796.4,3.57602]
[1724526927303,2.4454,2796.7,2796.3,1.55564971]
[1724526927963,2.4454,2796.7,2796.3,5.13177971]
[1724526928992,3.5754,2796.9,2796.5,1.55564971]
[1724526932903,6.02066,2797.0,2796.5,1.55564971]
[1724526935245,6.02066,2797.0,2796.5,5.13144971]
[1724526935246,2.4454,2797.0,2796.5,5.13144971]
[1724526935456,3.57476,2797.4,2796.7,1.55564971]
[1724526935656,2.3793,2797.3,2796.9,1.55564971]
[1724526935864,2.3793,2797.3,2797.1,1.55564971]
[1724526936198,3.57452,2797.6,2797.1,1.55564971]
[1724526936199,5.95382,2797.6,2797.1,1.55564971]
[1724526936739,5.95382,2797.6,2797.1,5.13076971]
[1724526937586,2.3793,2797.6,2797.1,5.13076971]
[1724526938346,2.3793,2797.6,2797.1,1.55564971]
[1724526938347,5.9538,2797.6,2797.1,1.55564971]
[1724526938546,3.57472,2797.5,2797.1,1.55564971]
[1724526938947,3.57472,2797.5,2796.9,3.5753]
[1724526938948,3.5748,2797.4,2796.9,1.55564971]
[1724526939679,5.9538,2797.6,2796.9,5.13096971]
[1724526939862,5.9538,2797.6,2797.1,1.55564971]
[1724526940062,9.52839,2797.6,2797.1,1.55564971]
[1724526940498,3.57465,2797.5,2797.1,1.55564971]
[1724526940846,3.57478,2797.4,2796.9,1.55564971]
[1724526941066,2.4523,2797.2,2796.9,1.55564971]
[1724526943171,6.02705,2797.4,2796.9,5.13100971]
[1724526944173,2.4523,2797.4,2796.9,5.13100971]
[1724526944699,2.4523,2797.4,2797.0,3.57525]
[1724526944904,2.4523,2797.4,2797.1,3.57512]
[1724526945204,2.4523,2797.7,2797.2,3.57496]
[1724526946009,2.4523,2797.7,2797.1,1.55564971]
[1724526946010,3.56795797,2797.7,2797.1,1.55564971]
[1724526946299,3.56795797,2797.7,2797.0,3.57514]
[1724526946300,3.56795797,2797.7,2797.0,5.13078971]
[1724526946506,3.57458,2797.6,2797.0,5.13078971]
[1724526946705,2.4523,2797.7,2797.2,1.55564971]
[1724526948207,2.4523,2797.7,2797.2,5.13056971]
[1724526948360,2.4523,2797.7,2797.2,8.70547971]
[1724526948809,2.4523,2797.7,2797.2,5.13055971]
[1724526949880,2.4523,2797.7,2797.2,3.57491]
[1724526950265,6.02668,2797.7,2797.2,3.57491]
[1724526950668,3.5745,2797.6,2797.1,2.3129]
[1724526951110,3.5745,2797.6,2797.1,5.88801]
[1724526951273,0.960108,2797.6,2796.8,16.23099]
[1724526951604,0.56069903,2798.1,2796.8,16.23099]
[1724526951605,2.3466,2797.1,2796.8,7.26]
[1724526951812,3.57487,2797.4,2796.8,10.83541]
[1724526952015,3.57487,2797.4,2796.9,1.55564971]
[1724526952224,5.92116,2797.6,2797.1,1.55564971]
[1724526952225,3.57462,2797.5,2797.1,1.55564971]
[1724526952378,2.3466,2797.6,2797.1,5.13069971]
[1724526953178,5.92109,2797.6,2797.1,5.13069971]
[1724526953413,5.92109,2797.6,2797.1,1.55564971]
[1724526953608,3.57483,2797.4,2796.9,3.95124971]
[1724526954479,3.5749,2797.3,2796.9,1.55564971]
[1724526954679,2.3466,2797.6,2796.7,2.3956]
[1724526954680,3.57524,2797.1,2796.7,2.3956]
[1724526954862,3.57524,2797.1,2796.7,1.55564971]
[1724526955883,3.57524,2797.1,2796.7,4.55564971]
[1724526956080,3.57524,2797.1,2796.7,1.55564971]
[1724526956856,2.3466,2797.6,2796.9,1.55564971]
[1724526957004,2.3466,2797.6,2797.1,1.55564971]
[1724526957199,3.57469,2797.5,2797.1,1.55564971]
[1724526959346,2.3466,2797.6,2797.1,1.55564971]
[1724526959546,5.92109,2797.6,2797.1,1.55564971]
[1724526959751,3.5743,2797.8,2797.2,3.57488]
[1724526959912,2.3466,2797.7,2797.2,3.57488]
[1724526961538,5.92097,2797.7,2797.2,3.57488]
[1724526961742,3.5743,2797.8,2797.3,3.95124971]
[1724526962060,3.5743,2797.8,2797.3,7.52604971]
[1724526962223,2.3466,2797.9,2797.3,8.72320218]
[1724526962567,5.92079,2797.9,2797.3,8.72320218]
[1724526963877,0.56069903,2798.1,2798.0,3.57398]
[1724526964078,0.1336472,2798.2,2798.0,3.57398]
[1724526964368,0.1336472,2798.2,2798.1,1.55564971]
[1724526964578,0.1336472,2798.2,2798.1,2.06861568]
[1724526965874,0.1336472,2798.2,2797.5,3.0]
[1724526965875,3.57412,2797.9,2797.5,3.0]
[1724526966077,3.57412,2797.9,2797.4,2.3956]
[1724526966078,3.57424,2797.8,2797.3,2.75280218]
[1724526966379,3.57424,2797.8,2797.3,1.55564971]
[1724526966525,3.57424,2797.8,2797.2,5.97051]
[1724526966725,3.57424,2797.8,2797.0,3.57516]
[1724526966726,3.5745,2797.6,2797.0,3.57516]
[1724526967068,3.5745,2797.6,2797.0,7.15032]
[1724526967233,3.5745,2797.6,2797.1,4.529682]
[1724526967608,3.57443,2797.7,2797.1,4.529682]
[1724526969263,3.57428,2797.8,2797.1,4.529682]
[1724526969264,3.5745,2797.6,2797.1,4.529682]
[1724526969779,3.5745,2797.6,2797.0,3.57525]
[1724526969982,3.5745,2797.6,2796.9,8.97095]
[1724526969983,7.1491,2797.6,2796.9,8.97095]
[1724526970146,3.57464,2797.5,2796.9,8.97095]
[1724526970508,6.06958,2797.4,2796.7,10.83553]
[1724526970792,6.06958,2797.4,2796.8,3.57548]
[1724526971091,6.06958,2797.4,2796.8,5.246371]
[1724526971857,3.57496,2797.3,2796.8,1.670891]
[1724526972258,6.06958,2797.4,2796.8,1.670891]
[1724526972555,3.57487,2797.3,2796.8,1.670891]
[1724526976561,3.57462,2797.5,2797.0,3.57524]
[1724526977503,3.57462,2797.5,2796.9,3.57538]
[1724526977710,3.5747,2797.5,2796.8,5.246311]
[1724526977923,3.57489,2797.3,2796.8,5.246311]
[1724526978066,3.57489,2797.3,2796.8,1.670891]
[1724526978265,3.57489,2797.3,2796.8,5.246401]
[1724526978708,3.57469,2797.5,2796.8,5.246401]
[1724526978709,7.1494,2797.5,2796.8,5.246401]
[1724526978911,3.57475,2797.4,2796.8,8.821841]
[1724526979121,3.57469,2797.5,2796.9,1.6081841]
[1724526979482,3.57475,2797.4,2796.8,3.57544]
[1724526979880,2.74877864,2798.2,2796.7,7.26]
[1724526979881,6.06978,2797.3,2796.7,7.26]
[1724526980095,3.57508,2797.2,2796.7,7.26]
[1724526980896,7.15018,2797.2,2796.7,7.26]
[1724526981097,3.57508,2797.2,2796.6,3.57572]
[1724526981301,3.57525,2797.1,2796.5,15.22]
[1724526981688,3.57508,2797.2,2796.5,15.22]
[1724526981689,3.57528,2797.0,2796.5,15.22]
[1724526981864,3.57528,2797.0,2796.5,12.22]
[1724526982890,3.57528,2797.0,2796.5,15.79588]
[1724526983420,3.57528,2797.0,2796.4,13.13383]
[1724526983421,2.4948,2797.9,2797.3,3.57485]
[1724526983565,3.57403,2798.0,2797.3,5.87269]
[1724526983772,3.7074272,2798.2,2797.6,3.57438]
[1724526984509,3.7074272,2798.2,2797.7,3.57434]
[1724526986898,0.1336472,2798.2,2797.8,3.57421]
[1724526987266,0.1336472,2798.2,2797.9,5.87199]
[1724526987503,0.1336472,2798.2,2797.9,6.81661]
[1724526987679,0.1336472,2798.2,2797.9,6.88808332]
[1724526988370,0.1336472,2798.2,2797.9,3.24252]
[1724526988903,0.1336472,2798.2,2797.9,6.81661]
[1724526991577,0.1336472,2798.2,2797.9,3.24252]
[1724526991772,0.1336472,2798.2,2798.0,0.681666]
[1724526992675,2.4359472,2798.2,2798.0,0.681666]
[1724526992872,3.57387,2798.1,2797.7,3.0]
[1724526993080,3.57387,2798.1,2797.6,2.3455]
[1724526993406,3.57387,2798.1,2797.5,3.57458]
[1724526994622,2.4359472,2798.2,2797.3,7.847269]
[1724526994623,3.57434,2797.8,2797.3,7.847269]
[1724526994775,2.4359472,2798.2,2797.3,0.587269]
[1724526994776,3.57405,2798.0,2797.3,0.587269]
[1724526994975,3.57405,2798.0,2797.3,4.162119]
[1724526994976,3.57426,2797.8,2797.3,4.162119]
[1724526996016,3.57405,2798.0,2797.3,4.162119]
[1724526996328,3.7074372,2798.2,2797.6,2.3455]
[1724526996715,3.7074372,2798.2,2797.6,5.91998]
[1724526996892,3.7074372,2798.2,2797.7,0.591998]
[1724527000083,7.2812672,2798.2,2797.7,0.591998]
[1724527000508,3.57386,2798.1,2797.7,0.591998]
[1724527001324,3.57386,2798.1,2797.6,2.3455]
[1724527001954,3.57401,2798.0,2797.6,2.3455]
[1724527002154,3.57401,2798.0,2797.4,7.26]
[1724527002155,3.57428,2797.8,2797.4,7.26]
[1724527006054,3.57428,2797.8,2797.3,6.507589]
[1724527006211,3.57428,2797.8,2797.4,0.9507589]
[1724527007370,3.36270678,2797.8,2797.4,0.9507589]
[1724527009441,9.4504,2798.0,2797.4,0.9507589]
[1724527010275,5.87632,2798.0,2797.4,0.9507589]
[1724527010572,5.87632,2798.0,2797.4,4.5254689]
[1724527011269,5.87632,2798.0,2797.5,1.10330279]
[1724527011565,3.7074372,2798.2,2797.6,6.04609]
[1724527012467,0.1336472,2798.2,2797.8,3.5742]
[1724527012920,0.1336472,2798.2,2797.9,2.4717]
[1724527013683,0.1336472,2798.2,2797.7,6.04597]
[1724527013889,0.1336472,2798.2,2797.8,0.604597]
[1724527014581,3.7073972,2798.2,2797.8,0.604597]
[1724527015214,6.1139972,2798.2,2797.8,0.604597]
[1724527016121,3.57401,2798.0,2797.5,14.40957279]
[1724527017886,3.57401,2798.0,2797.5,7.14957279]
[1724527018419,3.52401,2798.0,2797.5,7.14957279]
[1724527018717,6.1139972,2798.2,2797.5,7.14957279]
[1724527018718,3.57394,2798.1,2797.5,3.57500279]
[1724527018922,3.57394,2798.1,2797.5,7.14958279]
[1724527019104,3.57402,2798.0,2797.6,0.7950515]
[1724527020377,3.57402,2798.0,2797.4,0.9507589]
[1724527020626,3.57426,2797.8,2797.4,0.9507589]
[1724527020828,3.57402,2798.0,2797.4,0.9507589]
[1724527020977,3.57402,2798.0,2797.4,4.5254689]
[1724527021918,7.14809,2798.0,2797.4,4.5254689]
[1724527022116,3.57402,2798.0,2797.4,4.5254689]
[1724527022320,3.57402,2798.0,2797.5,1.05719389]
[1724527024294,3.57402,2798.0,2797.6,2.4717]
[1724527026389,5.98062,2798.0,2797.4,3.4224589]
[1724527026733,5.98062,2798.0,2797.4,6.9971589]
[1724527027481,9.55471,2798.0,2797.4,6.9971589]
[1724527027716,5.98062,2798.0,2797.4,6.9971589]
[1724527028220,5.98122,2797.5,2797.0,0.37143994]
[1724527028384,3.57476,2797.4,2796.8,13.30713]
[1724527028586,3.57476,2797.4,2796.8,9.7317]
[1724527028822,5.98122,2797.5,2796.9,6.60889456]
[1724527029785,3.57475,2797.4,2796.9,6.60889456]
[1724527029996,3.57475,2797.4,2796.8,7.26]
[1724527030290,3.57538,2796.9,2796.8,7.26]
[1724527030489,3.57551,2796.8,2796.2,14.78060142]
[1724527030803,3.57551,2796.8,2796.2,18.35679142]
[1724527031625,3.57551,2796.8,2796.3,6.57615]
[1724527031845,3.57551,2796.8,2796.4,2.13567514]
[1724527033002,7.15058,2797.0,2796.4,2.13567514]
[1724527034011,3.57525,2797.0,2796.4,5.71169514]
[1724527034702,3.5754,2796.9,2796.4,5.71169514]
[1724527034907,3.57525,2797.0,2796.4,5.71169514]
[1724527035104,3.57525,2797.0,2796.5,0.87116951]
[1724527035631,7.15061,2797.0,2796.5,0.87116951]
[1724527035789,3.57525,2797.0,2796.5,0.87116951]
[1724527037190,7.1506,2797.0,2796.5,0.87116951]
[1724527037399,3.57525,2797.0,2796.5,0.87116951]
[1724527038348,3.57538,2796.9,2796.5,0.87116951]
[1724527039350,3.57538,2796.9,2796.6,0.30068447]
[1724527043961,3.57538,2796.9,2796.4,5.71168514]
[1724527044660,3.57538,2796.9,2796.4,2.13567514]
[1724527044832,3.57538,2796.9,2796.3,3.57612]
[1724527045032,3.57577,2796.6,2796.2,9.6564]
[1724527045446,3.57565,2796.7,2796.2,9.6564]
[1724527047816,3.57565,2796.7,2796.2,10.02841099]
[1724527048764,3.57565,2796.7,2796.2,13.23268]
[1724527049072,5.86765,2796.7,2796.2,13.23268]
[1724527049714,3.57565,2796.7,2796.2,13.23268]
[1724527049960,3.57565,2796.7,2796.2,15.213591]
[1724527050695,3.57565,2796.7,2796.2,7.953591]
[1724527052267,6.03142,2796.9,2796.2,7.953591]
[1724527053293,3.57553,2796.8,2796.2,7.953591]
[1724527054510,3.57553,2796.8,2796.3,1.54836222]
[1724527064574,3.57533,2797.0,2796.3,2.30045744]
[1724527064988,3.5755,2796.9,2796.3,5.87649744]
[1724527065199,3.57551,2796.8,2796.3,5.87649744]
[1724527069458,3.57551,2796.8,2796.4,2.4636]
[1724527069658,3.57513,2797.1,2796.5,5.12418222]
[1724527069843,3.57513,2797.1,2796.6,2.3332]
[1724527070013,3.57513,2797.1,2796.6,2.1222]
[1724527071417,3.57506,2797.2,2796.6,2.1222]
[1724527071758,3.57481,2797.4,2796.7,1.54836222]
[1724527072130,3.57429,2797.8,2797.1,1.54836222]
[1724527072323,3.57443,2797.7,2797.1,5.12340222]
[1724527072521,3.57443,2797.7,2797.1,5.9059676]
[1724527073142,3.57443,2797.7,2797.2,2.3332]
[1724527073852,3.57449,2797.6,2797.2,2.3332]
[1724527075441,3.57429,2797.8,2797.3,3.57484]
[1724527075652,3.57405,2798.0,2797.5,5.12297222]
[1724527077282,3.57405,2798.0,2797.5,1.54836222]
[1724527080475,4.26779576,2798.2,2797.6,5.90758]
[1724527080727,4.26779576,2798.2,2797.6,9.48199]
[1724527080877,4.26779576,2798.2,2797.6,5.90758]
[1724527081383,4.26779576,2798.2,2797.7,1.54836222]
[1724527081583,3.7074172,2798.2,2797.7,1.54836222]
[1724527084002,7.2812272,2798.2,2797.7,1.54836222]
[1724527084304,0.1336472,2798.2,2797.9,5.12244222]
[1724527084619,0.1336472,2798.2,2798.0,2.3332]
[1724527085692,0.1336472,2798.2,2798.1,1.54836222]
[1724527086364,0.1336472,2798.2,2798.1,3.88156222]
[1724527086569,0.1336472,2798.2,2798.1,4.98449644]
[1724527087379,0.1336472,2798.2,2798.1,8.55834644]
[1724527090102,0.1336472,2798.2,2798.1,12.13219644]
[1724527092059,0.1336472,2798.2,2798.1,15.13219644]
[1724527101631,0.1336472,2798.2,2798.1,22.27989644]
[1724527101839,0.1336472,2798.2,2798.1,25.29809644]
[1724527102005,6.83e-06,2798.2,2798.1,25.29809644]
[1724527102388,2.3134,2799.6,2799.3,1.54836222]
[1724527103005,5.88536,2799.6,2799.3,1.54836222]
[1724527103203,2.3134,2799.9,2799.5,1.54836222]
[1724527103621,2.3134,2799.9,2799.5,2.06042144]
[1724527104708,2.3134,2799.9,2799.2,3.57242]
[1724527104709,3.57176,2799.8,2799.2,3.57242]
[1724527104912,3.57176,2799.8,2799.4,1.54836222]
[1724527105547,2.87344193,2800.3,2799.6,1.54836222]
[1724527105855,0.33532639,2801.7,2800.1,1.54836222]
[1724527105856,5.88411,2800.6,2800.1,1.54836222]
[1724527106056,6.829567,2800.6,2800.1,1.54836222]
[1724527106264,6.829567,2800.6,2800.3,1.54836222]
[1724527106406,6.829567,2800.6,2800.0,3.64274909]
[1724527106606,10.400347,2800.6,2800.0,3.57133]
[1724527106873,6.829567,2800.6,2800.0,3.57133]
[1724527107013,0.6829567,2800.5,2799.9,3.57152]
[1724527107539,4.2537467,2800.5,2799.9,3.57152]
[1724527107704,3.57079,2800.5,2799.9,3.57152]
[1724527109775,3.7038372,2801.0,2800.1,3.7058971]
[1724527109776,0.1336472,2801.0,2800.1,3.7058971]
[1724527110066,0.1336472,2801.0,2800.2,3.0]
[1724527110225,2.4201,2800.7,2800.1,3.57128]
[1724527110568,5.99067,2800.7,2800.1,3.57128]
[1724527111176,5.99067,2800.7,2800.1,7.14249]
[1724527111378,5.99067,2800.7,2800.2,3.57116]
[1724527112771,6.589737,2800.7,2800.2,3.57116]
[1724527113289,3.019167,2800.7,2800.2,3.57116]
[1724527114882,3.019167,2800.7,2800.3,3.57095]
[1724527115197,2.4201,2800.7,2800.3,3.57095]
[1724527115895,2.4201,2800.7,2800.3,3.57094]
[1724527116260,2.4201,2800.7,2800.3,3.54797078]
[1724527117684,2.4201,2800.7,2800.1,3.5712]
[1724527117685,5.99064,2800.7,2800.1,3.5712]
[1724527120089,5.99064,2800.7,2800.1,7.14242]
[1724527120289,2.4201,2800.7,2800.3,3.57097]
[1724527120600,2.4201,2800.7,2800.1,3.57124]
[1724527120812,2.4201,2800.7,2800.3,3.57096]
[1724527121889,3.57068,2800.6,2800.1,3.57125]
[1724527122090,0.599078,2800.6,2800.1,3.57125]
[1724527122868,0.599078,2800.6,2800.1,3.57121]
[1724527124079,4.169738,2800.6,2800.1,3.57121]
[1724527124281,0.599078,2800.6,2800.1,3.57121]
[1724527124464,4.169758,2800.6,2800.1,3.57121]
[1724527124662,2.4201,2800.4,2800.0,7.26]
[1724527125312,2.4201,2800.0,2799.4,3.57209]
[1724527125678,5.99154,2800.0,2799.4,3.57209]
[1724527126195,2.4201,2800.0,2799.2,9.5659]
[1724527126381,3.57085,2800.5,2799.2,9.5659]
[1724527126382,5.99123,2800.3,2799.7,3.57171]
[1724527126587,2.4201,2800.9,2800.2,3.57107]
[1724527126891,5.9904,2800.9,2800.2,3.57107]
[1724527128070,5.9904,2800.9,2800.2,7.14214]
[1724527128813,9.56077,2800.9,2800.2,7.14214]
[1724527129515,5.9904,2800.9,2800.3,3.57104]
[1724527129712,10.53019172,2800.9,2800.3,3.57104]
[1724527130020,3.57042,2800.8,2800.2,3.57107]
[1724527130199,10.53021172,2800.9,2800.2,7.14212]
[1724527130407,3.57044,2800.8,2800.2,3.57105]
[1724527130913,3.57044,2800.8,2800.0,13.13727]
[1724527130914,2.4944,2800.5,2800.0,10.83137]
[1724527132386,6.06527,2800.5,2800.0,7.26]
[1724527132620,9.63617,2800.5,2800.0,7.26]
[1724527132775,6.06527,2800.5,2800.0,7.26]
[1724527135522,0.70934589,2800.8,2799.4,23.27216]
[1724527135523,2.4944,2800.4,2799.5,7.26]
[1724527135729,2.4944,2799.9,2799.5,7.26]
[1724527136735,2.4944,2800.1,2799.5,7.26]
[1724527136896,2.4944,2800.1,2799.6,3.57193]
[1724527142236,6.06579,2800.1,2799.5,7.26]
[1724527142436,6.06579,2800.1,2799.5,10.83204]
[1724527142889,3.57145,2800.0,2799.5,10.83204]
[1724527143092,3.57145,2800.0,2799.5,7.26]
[1724527143093,4.535157,2800.0,2799.5,7.26]
[1724527143291,2.4944,2799.7,2799.5,7.26]
[1724527143539,2.4944,2799.7,2799.4,23.27219]
[1724527143707,2.4944,2799.9,2799.4,23.27219]
[1724527143908,3.57176,2799.8,2799.4,19.7]
[1724527147054,3.57185,2799.7,2799.2,6.57236]
[1724527147255,3.57185,2799.7,2799.2,3.0]
[1724527147826,3.57185,2799.7,2799.2,6.57244]
[1724527148129,6.06602,2799.9,2799.3,3.57231]
[1724527148330,6.9227212,2799.9,2799.3,3.57231]
[1724527148638,3.57169,2799.8,2799.2,10.14481]
[1724527148843,3.57169,2799.8,2799.3,3.57232]
[1724527150527,3.57169,2799.8,2799.2,10.14474]
[1724527151129,3.57169,2799.8,2799.2,6.57237]
[1724527151337,4.535397,2799.8,2799.2,6.57237]
[1724527151831,4.535397,2799.8,2799.2,10.14473]
[1724527152347,4.535397,2799.8,2799.3,3.57232]
[1724527153678,4.535397,2799.8,2799.1,3.57256]
[1724527153679,4.535397,2799.8,2799.1,3.57246]
[1724527153839,6.03962,2799.7,2799.2,3.57244]
[1724527154035,3.57194,2799.6,2799.0,3.57262]
[1724527154475,3.57194,2799.6,2799.1,3.57252]
[1724527155250,2.4678,2799.7,2799.1,3.57252]
[1724527156429,6.03963,2799.7,2799.1,3.57252]
[1724527160215,7.000762,2799.7,2799.1,3.57148576]
[1724527160416,7.000762,2799.7,2799.2,1.54524041]
[1724527161133,3.57196,2799.6,2799.2,1.54524041]
[1724527161847,3.57196,2799.6,2798.9,3.57276]
[1724527161848,6.03932,2800.0,2799.4,1.54524041]
[1724527161999,6.03932,2800.0,2799.4,5.11742041]
[1724527162200,9.61084,2800.0,2799.4,5.11742041]
[1724527162750,2.4678,2799.9,2798.8,0.37150637]
[1724527162959,3.57317,2798.7,2798.1,1.86960356]
[1724527163119,3.57317,2798.7,2797.9,5.9444]
[1724527163454,3.57317,2798.7,2798.1,3.57384]
[1724527164070,3.57317,2798.7,2798.0,1.54524041]
[1724527164273,3.57317,2798.7,2798.0,2.65160445]
[1724527164444,3.57325,2798.6,2798.0,2.65160445]
[1724527164644,3.57342,2798.5,2798.0,1.10636404]
[1724527164841,3.57342,2798.5,2797.9,2.74203837]
[1724527164842,3.57361,2798.3,2797.9,2.74203837]
[1724527169076,0.56027306,2798.8,2798.2,3.57366]
[1724527169406,2.4678,2799.1,2798.4,2.3704]
[1724527169407,3.57286,2798.9,2798.4,2.3704]
[1724527169617,3.57278,2799.0,2798.4,2.3704]
[1724527170209,3.5729,2798.9,2798.4,2.3704]
[1724527170669,3.57297,2798.8,2798.4,2.3704]
[1724527170864,3.57297,2798.8,2798.1,5.9747]
[1724527171116,3.57297,2798.8,2798.1,6.96674084]
[1724527171829,3.57317,2798.7,2798.1,6.96674084]
[1724527172128,3.57323,2798.6,2798.1,3.39294084]
[1724527172331,3.57323,2798.6,2798.1,2.4009]
[1724527172481,3.57323,2798.6,2797.9,3.94563837]
[1724527172686,3.57347,2798.4,2797.9,2.77253837]
[1724527174181,3.57323,2798.6,2797.9,6.34661837]
[1724527174436,3.57335,2798.5,2797.9,8.06471221]
[1724527175336,3.5736,2798.3,2797.8,7.26]
[1724527175541,3.57393,2798.1,2797.8,7.26]
[1724527175749,3.57393,2798.1,2797.6,22.1009]
[1724527175895,3.57356,2798.4,2797.7,3.57432]
[1724527176240,3.57354,2798.4,2797.8,3.57416]
[1724527178339,3.57363,2798.3,2797.8,3.57416]
[1724527178543,3.57372,2798.2,2797.6,25.67529]
[1724527178909,3.57372,2798.2,2797.6,22.1009]
[1724527179073,2.3721,2798.1,2797.6,25.67536]
[1724527180147,5.94598,2798.1,2797.6,22.1009]
[1724527180346,5.94573,2798.3,2797.6,25.67535]
[1724527180637,5.94573,2798.3,2797.6,29.23654015]
[1724527181384,3.57375,2798.2,2797.6,29.23654015]
[1724527181534,3.57375,2798.2,2797.6,9.53654015]
[1724527181734,3.57375,2798.2,2797.6,5.97535]
[1724527182463,3.57385,2798.1,2797.6,2.4009]
[1724527182817,3.57411,2797.9,2797.5,3.0]
[1724527183017,7.1478,2798.1,2797.5,3.0]
[1724527183465,3.574,2798.0,2797.5,3.0]
[1724527184564,3.574,2798.0,2797.4,10.83473]
[1724527184719,5.94623,2797.9,2797.4,10.83473]
[1724527184918,3.57413,2797.9,2797.4,10.83473]
[1724527185121,2.3721,2798.8,2797.5,1.2644958]
[1724527185365,3.57342,2798.5,2797.8,3.57412]
[1724527185578,7.14686,2798.5,2797.8,3.57412]
[1724527186047,3.57349,2798.4,2797.8,3.57412]
[1724527186503,3.57342,2798.5,2797.9,3.57409]
[1724527187022,3.57342,2798.5,2797.8,3.57412]
[1724527187023,7.14688,2798.5,2797.8,3.57412]
[1724527188847,3.57348,2798.4,2797.8,3.57412]
[1724527190776,3.5736,2798.3,2797.8,3.57412]
[1724527191259,7.14732,2798.3,2797.6,7.18525858]
[1724527191483,7.14731,2798.3,2797.7,3.57435]
[1724527192075,2.3853,2798.0,2797.4,0.37273309]
[1724527192290,3.57445,2797.7,2797.1,5.86152]
[1724527192496,3.57445,2797.7,2797.1,6.23519029]
[1724527193144,3.57385,2798.1,2797.1,3.64110732]
[1724527193372,3.57385,2798.1,2797.1,2.66007029]
[1724527193533,3.57405,2798.0,2797.1,6.23515029]
[1724527193875,3.57412,2797.9,2797.3,3.57478]
[1724527195686,7.14834,2797.9,2797.3,3.57478]